bitfinex-derivatives/quotes_SOLF0:USTF0_20240818
["timestamp","ask_amount","ask_price","bid_price","bid_amount"]
[1723948858621,0.05280632,141.67,141.64,1.43743612]
[1723948859630,2.52300632,141.67,141.64,1.43743612]
[1723948860319,8.74280632,141.67,141.64,0.05133612]
[1723948860525,8.69,141.66,141.64,0.05133612]
[1723948860727,2.4705,141.65,141.64,0.05133612]
[1723948869434,11.1605,141.65,141.64,0.05133612]
[1723948869629,2.4707,141.64,141.6,2.4713]
[1723948870835,0.05134672,141.63,141.61,0.04841841]
[1723948871233,0.05134672,141.63,141.61,2.51961841]
[1723948872137,0.05134672,141.63,141.62,2.471]
[1723948872526,0.05134672,141.63,141.61,0.04841841]
[1723948873025,0.05134672,141.63,141.61,2.51951841]
[1723948873526,0.05134672,141.63,141.61,0.04841841]
[1723948879840,11.161,141.62,141.61,0.04841841]
[1723948880136,11.161,141.62,141.58,5.2151]
[1723948881143,11.161,141.62,141.59,0.05411218]
[1723948884834,2.4712,141.61,141.59,0.05411218]
[1723948912555,8.69,141.6,141.59,0.05411218]
[1723948918254,8.69,141.61,141.59,0.05411218]
[1723948918453,0.05134672,141.63,141.59,0.05411218]
[1723948919659,8.74134672,141.63,141.59,0.05411218]
[1723948919859,11.21224672,141.63,141.59,0.05411218]
[1723948920760,2.4711,141.62,141.59,0.05411218]
[1723948920959,8.69,141.61,141.59,0.05411218]
[1723948925557,0.05134672,141.63,141.59,0.05411218]
[1723948926165,2.52224672,141.63,141.59,2.52551218]
[1723948928761,11.21224672,141.63,141.59,2.52551218]
[1723948928969,2.471,141.62,141.59,2.52551218]
[1723948929162,8.69,141.61,141.59,0.05411218]
[1723948930966,11.1612,141.61,141.59,0.05411218]
[1723948933167,2.4712,141.61,141.59,0.05411218]
[1723948936965,11.21234672,141.63,141.59,2.52561218]
[1723948939866,11.161,141.62,141.59,2.52561218]
[1723948940272,2.4712,141.61,141.59,0.05411218]
[1723948942672,8.69,141.6,141.59,0.05411218]
[1723948945769,11.1614,141.6,141.59,0.05411218]
[1723948949977,2.4717,141.59,141.55,1.3986]
[1723948950169,11.1617,141.59,141.55,1.3986]
[1723948950473,11.1617,141.59,141.55,3.8708]
[1723948950869,0.04457375,141.58,141.56,0.05011627]
[1723948951375,2.51637375,141.58,141.56,0.05011627]
[1723948972085,0.04457375,141.58,141.56,0.05011627]
[1723948972686,0.04457375,141.58,141.57,2.4719]
[1723948976187,8.69,141.65,141.58,8.69]
[1723948976394,8.69,141.65,141.58,12.2395231]
[1723948976798,2.4707,141.64,141.6,2.4712]
[1723948977093,0.04821447,141.63,141.61,0.04778698]
[1723948977391,0.04821447,141.63,141.61,2.51898698]
[1723948978197,0.04821447,141.63,141.62,2.471]
[1723948978691,0.04821447,141.63,141.62,3.8462]
[1723948987096,68.62042569,141.68,141.62,10.0652]
[1723948987401,68.62042569,141.68,141.62,11.3751]
[1723948988001,71.09042569,141.68,141.62,11.3751]
[1723948988202,0.04715867,141.66,141.64,2.4705]
[1723948988704,0.04715867,141.66,141.64,2.51904575]
[1723948995805,0.04715867,141.66,141.65,2.4705]
[1723949004508,3.54137132,141.73,141.65,8.69]
[1723949004812,8.69,141.72,141.65,8.69]
[1723949005008,2.4697,141.7,141.66,3.52008854]
[1723949005319,11.1597,141.7,141.66,6.0842858]
[1723949005511,11.1597,141.7,141.66,2.4703]
[1723949005711,0.05263004,141.69,141.67,0.05410917]
[1723949006315,2.52243004,141.69,141.67,0.05410917]
[1723949006618,11.21243004,141.69,141.67,0.05410917]
[1723949007520,2.47,141.68,141.67,0.05410917]
[1723949010625,11.16,141.68,141.67,0.05410917]
[1723949016123,11.16,141.68,141.62,5.5752]
[1723949016124,2.4706,141.65,141.62,5.5752]
[1723949016732,8.69,141.68,141.62,5.5752]
[1723949016733,4.2,141.7,141.62,5.5752]
[1723949016932,4.2,141.74,141.66,8.69]
[1723949017234,0.04687756,141.7,141.68,0.05295231]
[1723949021633,0.04687756,141.7,141.69,2.4698]
[1723949021930,8.69,141.76,141.69,8.69]
[1723949022124,8.69,141.76,141.71,8.69]
[1723949022435,2.4687,141.76,141.71,8.69]
[1723949022728,70.71918507,141.78,141.72,8.69]
[1723949023036,0.04687376,141.75,141.72,0.04477761]
[1723949023834,0.04687376,141.75,141.72,2.51387761]
[1723949024631,0.04687376,141.75,141.73,2.4691]
[1723949024833,0.04687376,141.75,141.72,0.04477761]
[1723949025842,0.04687376,141.75,141.72,2.51397761]
[1723949027333,0.04687376,141.75,141.73,8.69]
[1723949028232,0.04687376,141.75,141.72,1.36067761]
[1723949028441,0.04687376,141.75,141.72,10.05067761]
[1723949028936,0.04687376,141.75,141.72,12.51987761]
[1723949029737,0.04687376,141.75,141.72,0.04477761]
[1723949030232,2.51567376,141.75,141.72,0.04477761]
[1723949030534,0.04687376,141.75,141.72,0.04477761]
[1723949030935,0.04687376,141.75,141.73,8.69]
[1723949031137,0.04687376,141.75,141.72,3.77757761]
[1723949031438,0.04687376,141.75,141.73,8.69]
[1723949032842,0.04687376,141.75,141.72,5.09447761]
[1723949033139,0.04687376,141.75,141.73,2.4691]
[1723949034230,0.04687376,141.75,141.73,11.1591]
[1723949035034,8.73687376,141.75,141.72,0.04477761]
[1723949035446,2.4691,141.73,141.72,0.04477761]
[1723949036245,8.73687376,141.75,141.72,0.04477761]
[1723949036446,8.69,141.73,141.72,0.04477761]
[1723949036939,2.4691,141.73,141.72,0.04477761]
[1723949037744,2.469,141.74,141.72,0.04477761]
[1723949038146,0.04687376,141.75,141.73,8.69]
[1723949038443,0.04687376,141.75,141.73,10.0663]
[1723949038647,0.04687376,141.75,141.73,11.3959]
[1723949038849,0.04687376,141.75,141.74,2.4689]
[1723949039544,0.04687376,141.75,141.73,12.7704]
[1723949040751,0.04687376,141.75,141.74,2.4689]
[1723949041838,0.04687376,141.75,141.73,5.175]
[1723949042542,0.04687376,141.75,141.73,2.7059]
[1723949042743,0.04687376,141.75,141.72,0.04477761]
[1723949044051,0.04687376,141.75,141.74,11.1589]
[1723949044356,82.76893581,141.82,141.74,8.69]
[1723949044548,8.69,141.81,141.74,8.69]
[1723949044743,2.4681,141.79,141.74,8.69]
[1723949045149,2.4681,141.79,141.74,11.1589]
[1723949045346,0.05385192,141.78,141.75,0.04871548]
[1723949046340,0.05385192,141.78,141.77,8.69]
[1723949046545,12.87,141.86,141.77,12.16245854]
[1723949046751,2.4673,141.84,141.79,8.69]
[1723949047351,12.22947399,141.87,141.81,8.69]
[1723949047547,2.72623464,141.86,141.81,8.69]
[1723949047849,0.04678997,141.85,141.83,0.05377514]
[1723949048240,2.4672,141.84,141.83,0.05377514]
[1723949048639,0.04678997,141.85,141.83,0.05377514]
[1723949048844,2.51378997,141.85,141.83,0.05377514]
[1723949049754,2.4672,141.84,141.83,0.05377514]
[1723949055852,0.04678997,141.85,141.83,21.71377514]
[1723949056053,3.72086082,141.91,141.83,21.71377514]
[1723949056254,2.4664,141.89,141.83,23.09017514]
[1723949056450,2.4664,141.89,141.83,24.3713]
[1723949056655,2.4664,141.89,141.84,1.3225]
[1723949057257,0.0452862,141.88,141.85,0.04930669]
[1723949057860,0.0452862,141.88,141.86,4.32]
[1723949062552,2.5117862,141.88,141.86,4.32]
[1723949063066,0.0452862,141.88,141.86,4.32]
[1723949064970,2.5117862,141.88,141.86,4.32]
[1723949065167,0.0452862,141.88,141.85,0.04930669]
[1723949065359,0.0452862,141.88,141.86,4.32]
[1723949065564,2.5118862,141.88,141.86,4.32]
[1723949066472,0.0452862,141.88,141.83,4.32]
[1723949066859,0.0452862,141.88,141.84,21.66]
[1723949067573,0.0452862,141.88,141.85,0.05150677]
[1723949067773,2.5118862,141.88,141.85,0.05150677]
[1723949068070,2.5118862,141.88,141.85,8.71150677]
[1723949073363,2.5118862,141.88,141.85,0.05150677]
[1723949073564,8.7052862,141.88,141.85,0.05150677]
[1723949075467,2.4668,141.86,141.85,0.05150677]
[1723949076775,2.4671,141.85,141.81,7.0402]
[1723949077267,8.66,141.87,141.81,1.3203]
[1723949077469,8.66,141.87,141.8,8.66]
[1723949077672,0.0478572,141.85,141.82,0.0534176]
[1723949077869,2.4672,141.84,141.82,0.0534176]
[1723949079476,2.5149572,141.85,141.82,0.0534176]
[1723949079778,0.0478572,141.85,141.82,8.7134176]
[1723949080669,0.0478572,141.85,141.82,11.1809176]
[1723949081467,2.5148572,141.85,141.82,8.7134176]
[1723949081671,0.0478572,141.85,141.82,0.0534176]
[1723949082069,2.4673,141.84,141.82,0.0534176]
[1723949084479,0.0478572,141.85,141.82,0.0534176]
[1723949085678,2.4672,141.84,141.82,0.0534176]
[1723949087975,2.4674,141.83,141.82,0.0534176]
[1723949094886,2.4672,141.84,141.82,0.0534176]
[1723949098690,2.4674,141.83,141.82,0.0534176]
[1723949101805,2.4677,141.82,141.79,2.7476]
[1723949102896,2.5147726,141.82,141.79,2.79230099]
[1723949103802,4.42,141.89,141.81,8.66]
[1723949104001,4.42,141.89,141.84,8.66]
[1723949104304,2.4668,141.87,141.84,8.66]
[1723949104902,2.52049772,141.87,141.84,8.70949234]
[1723949105108,0.05369772,141.87,141.84,8.70949234]
[1723949105607,0.05369772,141.87,141.85,8.66]
[1723949105903,13.54152435,141.95,141.86,47.72]
[1723949106206,3.59182585,141.94,141.89,8.66]
[1723949106407,3.59182585,141.94,141.9,4.42]
[1723949107004,0.04870149,141.93,141.91,0.05234377]
[1723949108709,2.51440149,141.93,141.91,0.05234377]
[1723949108904,0.04870149,141.93,141.91,0.05234377]
[1723949114709,0.04870149,141.93,141.91,2.51824377]
[1723949116404,0.04870149,141.93,141.92,2.4658]
[1723949116613,3.51695284,141.99,141.92,21.67]
[1723949116807,4.42,142.01,141.92,28.7063]
[1723949117008,2.4649,141.98,141.92,28.7063]
[1723949117203,5.90042674,141.98,141.92,28.7063]
[1723949117409,2.4649,141.98,141.92,28.7063]
[1723949117712,0.05049264,141.96,141.94,0.04789341]
[1723949118014,0.05049264,141.96,141.94,2.51319341]
[1723949119314,0.05049264,141.96,141.94,0.04789341]
[1723949121412,2.51569264,141.96,141.94,0.04789341]
[1723949122010,0.05049264,141.96,141.94,0.04789341]
[1723949123011,0.05049264,141.96,141.94,2.51329341]
[1723949126013,0.05049264,141.96,141.94,0.04789341]
[1723949127012,2.51559264,141.96,141.94,0.04789341]
[1723949131020,0.05049264,141.96,141.94,8.70789341]
[1723949131920,0.05049264,141.96,141.95,8.66]
[1723949132829,0.05049264,141.96,141.95,11.1253]
[1723949133922,8.66,142.03,141.97,2.4649]
[1723949134121,0.25896625,142.02,141.97,2.4649]
[1723949134322,3.5710162,142.01,141.97,2.4649]
[1723949134624,8.66,142.03,141.96,11.125]
[1723949135025,0.04961299,142.01,141.98,0.04934132]
[1723949135226,3.62450384,142.01,141.98,0.04934132]
[1723949135426,0.04961299,142.01,141.98,0.04934132]
[1723949135832,2.4645,142.0,141.98,0.04934132]
[1723949138927,2.4646,141.99,141.98,0.04934132]
[1723949141335,2.4644,142.0,141.98,0.04934132]
[1723949143537,2.4646,141.99,141.98,0.04934132]
[1723949147344,2.4649,141.98,141.94,8.66]
[1723949148446,2.4649,141.98,141.95,0.04738407]
[1723949148447,0.04686079,141.97,141.95,0.04738407]
[1723949149339,2.51176079,141.97,141.95,0.04738407]
[1723949150939,2.4651,141.96,141.95,0.04738407]
[1723949153344,0.04686079,141.97,141.95,0.04738407]
[1723949153547,0.04686079,141.97,141.96,8.66]
[1723949153735,0.04686079,141.97,141.96,11.1251]
[1723949155538,0.04686079,141.97,141.96,2.4651]
[1723949155737,0.04686079,141.97,141.96,11.1251]
[1723949158044,0.04686079,141.97,141.96,2.4651]
[1723949159955,0.04686079,141.97,141.96,11.1251]
[1723949160355,4.36,142.04,141.96,8.66]
[1723949160653,118.20497895,142.09,141.99,8.66]
[1723949160654,9.9712,142.05,141.99,8.66]
[1723949160860,4.36,142.06,142.0,8.66]
[1723949161057,4.36,142.06,142.02,8.66]
[1723949161547,0.04532651,142.05,142.03,0.04458545]
[1723949161852,2.50892651,142.05,142.03,0.04458545]
[1723949163854,0.04532651,142.05,142.03,0.04458545]
[1723949167360,0.04532651,142.05,142.04,11.1237]
[1723949167561,74.95804583,142.08,142.04,11.1237]
[1723949168563,74.95804583,142.08,142.05,2.4635]
[1723949168763,0.05113808,142.07,142.05,2.4635]
[1723949168955,0.05113808,142.07,142.06,13.02]
[1723949169456,0.05113808,142.07,142.06,8.66]
[1723949169657,8.66,142.11,142.06,8.66]
[1723949169658,4.36,142.21,142.06,47.66]
[1723949169855,8.66,142.18,142.12,8.66]
[1723949170058,12.22252217,142.18,142.12,8.66]
[1723949170257,3.56252217,142.18,142.12,13.02]
[1723949170455,8.66,142.19,142.12,13.02]
[1723949170656,0.03591049,142.17,142.14,0.05357203]
[1723949170857,0.03591049,142.17,142.14,8.71357203]
[1723949171553,2.49741049,142.17,142.14,8.71357203]
[1723949171957,0.03591049,142.17,142.15,8.66]
[1723949172664,0.03591049,142.17,142.14,11.17547203]
[1723949172861,0.03591049,142.17,142.15,4.36]
[1723949173068,0.03591049,142.17,142.14,11.17547203]
[1723949173365,0.03591049,142.17,142.15,4.36]
[1723949173566,0.03591049,142.17,142.15,6.8218]
[1723949175160,0.03591049,142.17,142.15,15.4818]
[1723949175568,0.03591049,142.17,142.16,2.4616]
[1723949178161,5.6253,142.27,142.15,16.9454]
[1723949178360,4.91523365,142.3,142.22,8.66]
[1723949178564,85.83259838,142.28,142.21,8.66]
[1723949178967,8.66,142.26,142.21,8.66]
[1723949179168,2.4603,142.24,142.21,13.08]
[1723949179365,8.66,142.26,142.22,0.05164949]
[1723949179570,8.66,142.27,142.22,0.05164949]
[1723949180080,8.66,142.26,142.22,0.05164949]
[1723949180263,77.17259838,142.28,142.22,0.05164949]
[1723949180264,8.66,142.24,142.22,0.05164949]
[1723949180673,2.4604,142.23,142.22,0.05164949]
[1723949181161,2.4604,142.24,142.22,0.05164949]
[1723949182468,2.4604,142.23,142.22,0.05164949]
[1723949184667,21.16,142.35,142.22,8.71164949]
[1723949184875,8.66,142.3,142.24,8.66]
[1723949185074,12.09076049,142.3,142.27,0.05263874]
[1723949185669,2.4597,142.28,142.27,0.05263874]
[1723949186273,12.09076049,142.3,142.27,0.05263874]
[1723949187178,2.4596,142.28,142.27,0.05263874]
[1723949187583,11.1196,142.28,142.27,0.05263874]
[1723949188674,8.66,142.28,142.2,4.42]
[1723949188876,8.66,142.26,142.2,8.66]
[1723949189381,8.66,142.27,142.2,8.66]
[1723949189784,0.05241969,142.25,142.22,11.17117672]
[1723949189982,8.66,142.29,142.22,11.17011342]
[1723949190180,4.42,142.3,142.24,8.66]
[1723949190383,0.05263875,142.27,142.24,11.17176241]
[1723949191386,0.05263875,142.27,142.25,2.46]
[1723949191787,0.05263875,142.27,142.26,2.4599]
[1723949193886,0.05263875,142.27,142.24,0.05156241]
[1723949194490,0.05263875,142.27,142.25,2.46]
[1723949196188,0.05263875,142.27,142.24,0.05156241]
[1723949198293,0.05263875,142.27,142.24,2.51166241]
[1723949198592,0.05263875,142.27,142.24,0.05156241]
[1723949198989,2.51243875,142.27,142.24,0.05156241]
[1723949200290,2.4599,142.26,142.24,0.05156241]
[1723949201296,0.05263875,142.27,142.24,0.05156241]
[1723949201794,0.05263875,142.27,142.24,2.51166241]
[1723949203293,0.05263875,142.27,142.25,21.58]
[1723949203800,0.05263875,142.27,142.26,2.4599]
[1723949206496,2.4589,142.32,142.28,2.4595]
[1723949207593,2.4589,142.32,142.29,0.05174475]
[1723949208400,4.4,142.33,142.29,0.05174475]
[1723949209302,2.459,142.32,142.29,0.05174475]
[1723949209503,4.4,142.33,142.29,0.05174475]
[1723949209699,2.4592,142.31,142.29,0.05174475]
[1723949209904,21.58,142.32,142.23,21.58]
[1723949210703,2.4593,142.3,142.25,2.46]
[1723949210906,0.0500481,142.29,142.26,0.05372276]
[1723949213607,0.0500481,142.29,142.26,2.51362276]
[1723949213911,0.0500481,142.29,142.26,0.05372276]
[1723949215005,2.5095481,142.29,142.26,0.05372276]
[1723949215400,0.0500481,142.29,142.26,0.05372276]
[1723949215603,8.6800481,142.29,142.21,4.1211]
[1723949215908,8.6800481,142.29,142.21,12.7511]
[1723949216110,2.4597,142.27,142.22,2.4605]
[1723949216301,2.4597,142.27,142.23,8.63]
[1723949216905,0.05128204,142.26,142.24,0.04499175]
[1723949220822,0.05128204,142.26,142.24,11.13519175]
[1723949221824,0.05128204,142.26,142.25,2.4601]
[1723949222016,0.05128204,142.26,142.24,8.67499175]
[1723949222920,0.05128204,142.26,142.24,11.13509175]
[1723949223626,0.05128204,142.26,142.24,0.04499175]
[1723949224124,0.05128204,142.26,142.24,2.50519175]
[1723949224819,0.05128204,142.26,142.24,0.04499175]
[1723949225323,0.05128204,142.26,142.24,8.67499175]
[1723949225523,0.05128204,142.26,142.24,0.04499175]
[1723949225917,0.05128204,142.26,142.24,2.50519175]
[1723949227621,0.05128204,142.26,142.24,0.04499175]
[1723949228519,2.51118204,142.26,142.24,0.04499175]
[1723949231517,0.05128204,142.26,142.19,4.56]
[1723949231720,8.63,142.23,142.17,2.611]
[1723949232029,8.63,142.23,142.17,11.241]
[1723949232219,8.63,142.23,142.18,2.4612]
[1723949232416,12.19725451,142.23,142.18,2.4612]
[1723949232620,2.4608,142.21,142.18,2.4612]
[1723949232826,2.4608,142.21,142.19,0.04712405]
[1723949234720,8.63,142.21,142.13,2.6619]
[1723949234921,8.63,142.19,142.13,2.6619]
[1723949235430,2.4613,142.18,142.14,2.4619]
[1723949235825,0.05241394,142.17,142.15,0.04691164]
[1723949236232,2.51391394,142.17,142.15,0.04691164]
[1723949236626,0.05241394,142.17,142.15,0.04691164]
[1723949236931,0.05241394,142.17,142.15,2.50871164]
[1723949237132,0.05241394,142.17,142.15,0.04691164]
[1723949239030,2.51391394,142.17,142.15,0.04691164]
[1723949241025,2.4616,142.16,142.15,0.04691164]
[1723949241731,2.4616,142.16,142.12,2.4623]
[1723949242633,11.0916,142.16,142.12,2.4623]
[1723949242835,11.0916,142.16,142.13,0.04888955]
[1723949243732,2.4616,142.16,142.13,2.51098955]
[1723949243933,7.07391394,142.17,142.13,2.51098955]
[1723949244130,0.05241394,142.17,142.13,2.51098955]
[1723949244634,2.51391394,142.17,142.13,2.51098955]
[1723949246028,2.4616,142.16,142.13,0.04888955]
[1723949246427,0.05241394,142.17,142.13,8.67888955]
[1723949247730,2.51391394,142.17,142.13,11.14098955]
[1723949248127,2.51391394,142.17,142.13,2.51098955]
[1723949248728,2.4616,142.16,142.13,0.04888955]
[1723949248927,8.63,142.15,142.13,0.04888955]
[1723949249333,11.0918,142.15,142.13,0.04888955]
[1723949249729,64.31,142.14,141.94,50.03387522]
[1723949250031,8.63,142.09,142.02,8.63]
[1723949250233,8.63,142.09,142.04,2.4636]
[1723949250429,8.63,142.11,142.04,8.63]
[1723949250734,11.0925,142.11,142.05,8.63]
[1723949250926,0.04503429,142.09,142.06,8.68091013]
[1723949251132,0.04503429,142.09,142.06,0.05091013]
[1723949251537,0.04503429,142.09,142.06,2.51431013]
[1723949252435,0.04503429,142.09,142.07,2.4632]
[1723949253227,0.04503429,142.09,142.07,3.7898]
[1723949255437,0.04503429,142.09,142.07,5.1167]
[1723949257944,1.3175,142.19,142.08,8.63]
[1723949258134,8.63,142.16,142.1,8.63]
[1723949259048,0.05200456,142.14,142.12,0.04801067]
[1723949261245,0.05200456,142.14,142.12,2.51021067]
[1723949264252,0.05200456,142.14,142.12,0.04801067]
[1723949264843,2.4621,142.13,142.12,0.04801067]
[1723949265242,21.62,142.13,142.07,2.6535]
[1723949265444,2.4625,142.12,142.08,2.4629]
[1723949265847,21.62,142.13,142.08,2.4629]
[1723949266149,2.4625,142.11,142.07,5.1166]
[1723949266343,2.4625,142.11,142.08,0.04936509]
[1723949266548,0.04683685,142.1,142.08,0.04936509]
[1723949267453,2.50953685,142.1,142.08,0.04936509]
[1723949267755,0.04683685,142.1,142.08,0.04936509]
[1723949267956,24.0828,142.09,142.06,1.36]
[1723949268550,2.463,142.08,142.05,2.4634]
[1723949269051,2.463,142.08,142.05,2.50845177]
[1723949269852,21.62,142.07,142.05,0.04505177]
[1723949270745,24.0832,142.07,142.05,0.04505177]
[1723949270948,21.62,142.07,142.05,0.04505177]
[1723949271149,0.04683685,142.1,142.05,0.04505177]
[1723949271546,0.04683685,142.1,142.07,2.4631]
[1723949271747,0.04683685,142.1,142.05,0.04505177]
[1723949272251,0.04683685,142.1,142.07,2.4631]
[1723949276656,24.12953685,142.1,142.06,2.4633]
[1723949278059,2.4629,142.09,142.06,2.4633]
[1723949278259,21.66683685,142.1,142.05,0.04505177]
[1723949279753,2.4629,142.09,142.06,2.4633]
[1723949279955,21.62,142.09,142.05,0.04505177]
[1723949280559,0.04683685,142.1,142.05,0.04505177]
[1723949280954,2.50953685,142.1,142.06,2.4633]
[1723949281263,24.12953685,142.1,142.06,2.4633]
[1723949284058,0.04683685,142.1,142.05,0.04505177]
[1723949284661,0.04683685,142.1,142.08,2.4629]
[1723949286563,0.04683685,142.1,142.09,2.4628]
[1723949287065,0.04683685,142.1,142.08,0.05042686]
[1723949287266,0.04683685,142.1,142.09,2.4628]
[1723949291467,21.62,142.14,142.12,2.4623]
[1723949291775,21.62,142.16,142.07,4.6]
[1723949291965,4.6,142.19,142.08,8.65]
[1723949291966,8.65,142.14,142.08,8.65]
[1723949292575,8.65,142.14,142.12,2.4622]
[1723949292773,8.70062255,142.14,142.12,2.4622]
[1723949293875,0.05062255,142.14,142.12,2.4622]
[1723949294072,0.05062255,142.14,142.1,0.0460962]
[1723949294367,21.63,142.13,142.1,0.0460962]
[1723949295872,21.63,142.13,142.1,2.5085962]
[1723949300378,21.63,142.11,141.92,228.0]
[1723949300580,42.79,142.13,141.99,1.3558]
[1723949300581,21.63,142.04,141.99,1.3558]
[1723949300778,21.63,142.04,142.0,1.3349]
[1723949300779,26.13,142.04,142.0,1.3349]
[1723949301480,0.04645874,142.03,142.01,2.51677231]
[1723949304684,0.04645874,142.03,142.01,0.05267231]
[1723949305376,21.63,142.02,142.01,0.05267231]
[1723949307085,0.04645874,142.03,142.01,0.05267231]
[1723949307786,0.04645874,142.03,142.01,2.51687231]
[1723949309183,21.63,142.02,141.94,1.338]
[1723949309384,21.63,142.01,141.94,3.9867]
[1723949309584,4.5,142.0,141.94,3.9867]
[1723949309885,4.5,142.02,141.94,25.6167]
[1723949310388,0.04707345,141.99,141.97,0.0501056]
[1723949310780,0.04707345,141.99,141.98,2.4648]
[1723949312783,4.5,142.04,141.97,0.0501056]
[1723949313284,4.5,142.04,141.99,2.4646]
[1723949313485,2.4636,142.05,141.96,21.63]
[1723949313878,0.05116116,142.02,141.99,2.51012686]
[1723949314274,0.05116116,142.02,141.99,0.04572686]
[1723949315681,0.05116116,142.02,142.0,2.4643]
[1723949316587,0.05116116,142.02,142.0,3.7722]
[1723949320984,0.05116116,142.02,142.0,1.3079]
[1723949322387,8.70116116,142.02,142.0,1.3079]
[1723949324088,0.05116116,142.02,142.0,3.7723]
[1723949326595,0.05116116,142.02,142.01,2.4642]
[1723949327093,0.05116116,142.02,142.0,3.7722]
[1723949330582,0.05116116,142.02,142.01,2.4642]
[1723949332584,4.54,142.07,142.0,13.39969959]
[1723949332895,160.04625576,142.63,142.05,8.65]
[1723949332896,8.65,142.12,142.05,8.65]
[1723949333089,8.65,142.12,142.06,8.65]
[1723949333894,0.04622814,142.1,142.08,0.05347378]
[1723949335786,0.04622814,142.1,142.08,2.51647378]
[1723949336489,0.04622814,142.1,142.08,11.16647378]
[1723949337695,0.04622814,142.1,142.08,2.51647378]
[1723949337896,5.99496477,142.16,142.08,8.70347378]
[1723949338088,8.65,142.15,142.08,8.70347378]
[1723949338484,8.65,142.15,142.1,2.4625]
[1723949338898,8.65,142.15,142.09,4.54]
[1723949339198,0.05061502,142.14,142.11,0.05301493]
[1723949340794,0.05061502,142.14,142.11,2.51541493]
[1723949345204,0.05061502,142.14,142.11,0.05301493]
[1723949345898,0.05061502,142.14,142.13,2.4621]
[1723949346398,11.1114,142.18,142.12,1.3171]
[1723949347195,11.1114,142.18,142.12,9.9671]
[1723949347401,0.04454541,142.16,142.14,2.4619]
[1723949347596,0.04454541,142.16,142.14,7.05369625]
[1723949347997,0.04454541,142.16,142.15,2.4618]
[1723949348301,2.461,142.2,142.15,8.65]
[1723949348606,11.1108,142.21,142.16,2.4615]
[1723949349198,0.05181632,142.2,142.17,0.05249577]
[1723949350800,0.05181632,142.2,142.17,2.51399577]
[1723949351402,8.70181632,142.2,142.17,2.51399577]
[1723949351602,11.16281632,142.2,142.17,0.05249577]
[1723949352102,2.4611,142.19,142.17,0.05249577]
[1723949352301,8.65,142.18,142.17,0.05249577]
[1723949353695,11.1113,142.18,142.17,0.05249577]
[1723949354304,8.65,142.18,142.0,34.6]
[1723949354608,8.65,142.15,142.1,4.54]
[1723949355104,8.65,142.15,142.11,3.728]
[1723949355406,0.04456918,142.14,142.12,0.0461564]
[1723949357202,2.50656918,142.14,142.12,0.0461564]
[1723949360301,8.65,142.13,142.08,1.2637]
[1723949360701,8.65,142.12,142.06,7.0767]
[1723949361107,2.4625,142.11,142.07,2.4631]
[1723949361308,8.65,142.12,142.06,7.0767]
[1723949361508,0.04974083,142.1,142.08,0.05016781]
[1723949361702,8.65,142.13,142.08,2.4629]
[1723949361899,0.05008159,142.1,142.08,2.50902692]
[1723949367311,0.05008159,142.1,142.08,0.04612692]
[1723949368211,2.51278159,142.1,142.08,0.04612692]
[1723949370214,0.05008159,142.1,142.09,2.4628]
[1723949370409,4.5,142.17,142.08,8.65]
[1723949370615,34.6,142.29,142.14,8.65]
[1723949370616,4.5,142.2,142.14,8.65]
[1723949371408,0.04931894,142.18,142.16,0.04483518]
[1723949371710,2.51071894,142.18,142.16,0.04483518]
[1723949372413,0.04931894,142.18,142.16,0.04483518]
[1723949375718,2.51061894,142.18,142.16,0.04483518]
[1723949376320,0.04931894,142.18,142.16,0.04483518]
[1723949377410,2.51061894,142.18,142.16,0.04483518]
[1723949379516,0.04931894,142.18,142.16,0.04483518]
[1723949380318,0.04931894,142.18,142.16,2.50643518]
[1723949380720,0.04931894,142.18,142.16,0.04483518]
[1723949381324,8.69931894,142.18,142.16,0.04483518]
[1723949381711,0.04931894,142.18,142.16,0.04483518]
[1723949381915,0.04931894,142.18,142.16,8.69483518]
[1723949383211,0.04931894,142.18,142.16,11.15643518]
[1723949385526,2.4606,142.22,142.17,8.65]
[1723949386021,2.4606,142.22,142.18,2.4613]